fUST/lending_fUST_20251015
["ID","MTS","AMOUNT","RATE_DAILY","PERIOD"]
[391274997,1760463039046,-588.8145586,0.00027671,30]
[391274998,1760463039055,-162.9892445,0.00027671,30]
[391274999,1760463039065,-588.8145586,0.00027671,30]
[391275000,1760463039079,-588.8145586,0.00027671,30]
[391275001,1760463039093,-155.632171,0.00027671,30]
[391275002,1760463039106,-1188.7150405,0.00027671,30]
[391275003,1760463039119,-1380.90304782,0.00027713,2]
[391275004,1760463039132,-156.63,0.00027738,15]
[391275005,1760463039144,-170.0,0.00027753,26]
[391275006,1760463039155,-156.64315533,0.00027838,15]
[391275007,1760463039170,-460.0,0.0002785,2]
[391275008,1760463039183,-400.0,0.000279,2]
[391275009,1760463039195,-674.51963608,0.00027954,2]
[391275010,1760463039207,-588.8145586,0.00027978,30]
[391275011,1760463039220,-189.8496045,0.00027978,30]
[391275012,1760463039232,-1152.0,0.00027986,2]
[391275013,1760463039244,-100039.86643828,0.00027987,2]
[391275014,1760463039257,-1380.90304782,0.00027989,2]
[391275015,1760463039269,-331.66274377,0.00027997,2]
[391275016,1760463039281,-11397.08351893,0.00028,7]
[391275017,1760463039297,-711.49473383,0.00028,7]
[391275019,1760463040170,-7927.40997108,0.00028,7]
[391275020,1760463040183,-1859.62389554,0.00028,7]
[391275317,1760463046009,-2089.07574424,0.00025,7]
[391275318,1760463046021,-2089.07574424,0.000258,7]
[391275319,1760463046030,-84.18358038,0.00027,9]
[391275511,1760463268098,246.63012056,0.00030493,60]
[391275512,1760463452806,5000.0,0.00019,2]
[391275513,1760463551951,210.63215412,0.00030488,60]
[391275515,1760463591765,500.20853287,0.00030488,60]
[391275616,1760464232059,-267.36395894,0.00019259,2]
[391275618,1760464232069,-205.21333135,0.00019454,2]
[391275620,1760464232078,-300.0,0.00019641,2]
[391275622,1760464232089,-300.0,0.00019641,2]
[391275624,1760464232099,-1200.0,0.00019642,2]
[391275626,1760464232109,-300.0,0.00019642,2]
[391275628,1760464232118,-1200.0,0.00019642,2]
[391275630,1760464232128,-300.0,0.00019643,2]
[391275632,1760464232137,-300.0,0.00019643,2]
[391275634,1760464232147,-300.0,0.00019643,2]
[391275636,1760464232157,-300.0,0.00019643,2]
[391275638,1760464232166,-300.0,0.00019643,2]
[391275640,1760464232176,-300.0,0.00019643,2]
[391275641,1760464232185,-300.0,0.00019643,2]
[391275644,1760464232195,-300.0,0.00019643,2]
[391275646,1760464232206,-300.0,0.00019643,2]
[391275647,1760464232215,-300.0,0.00019643,2]
[391275648,1760464232225,-300.0,0.00019643,2]
[391275649,1760464232234,-300.0,0.00019643,2]
[391275650,1760464232243,-300.0,0.00019643,2]
[391275652,1760464232253,-300.0,0.00019643,2]
[391275654,1760464232263,-300.0,0.00019643,2]
[391275656,1760464232273,-1558.9547188,0.00019643,2]
[391275657,1760464232284,-2369.5595953,0.00019643,2]
[391275658,1760464232295,-46071.4856859,0.00019643,2]
[391275659,1760464232304,-356.55115888,0.000197,2]
[391275660,1760464232314,-1594.14,0.00019744,2]
[391275662,1760464232323,-307.46855278,0.00019859,2]
[391275664,1760464232332,-347.57314663,0.00020459,2]
[391275666,1760464232341,-3188.29,0.00020684,2]
[391275668,1760464232351,-387.67774047,0.00021059,2]
[391275670,1760464232360,-420.0,0.00021395,2]
[391275672,1760464232369,-444.0,0.00021396,2]
[391275674,1760464232379,-1680.0,0.00021499,2]
[391275676,1760464232388,-500.0,0.00021621,2]
[391275678,1760464232396,-500.0,0.00021621,2]
[391275680,1760464232405,-500.0,0.00021621,2]
[391275682,1760464232414,-500.0,0.00021621,2]
[391275683,1760464232423,-500.0,0.00021621,2]
[391275685,1760464232433,-500.0,0.00021621,2]
[391275687,1760464232442,-500.0,0.00021621,2]
[391275689,1760464232451,-267.3428605,0.00021621,2]
[391275691,1760464232460,-500.0,0.00021621,2]
[391275693,1760464232470,-472.39735798,0.00021621,2]
[391275695,1760464232479,-500.0,0.00021621,2]
[391275697,1760464232489,-500.0,0.00021621,2]
[391275699,1760464232498,-500.0,0.00021621,2]
[391275701,1760464232507,-625.70586883,0.00021621,2]
[391275703,1760464232516,-500.0,0.00021621,2]
[391275705,1760464232525,-500.0,0.00021621,2]
[391275707,1760464232534,-368.87481238,0.00021621,2]
[391275709,1760464232543,-289.46728682,0.00021621,2]
[391275711,1760464232552,-255.64304679,0.00021621,2]
[391275713,1760464232561,-152.09720137,0.00021621,2]
[391275714,1760464232570,-4782.43,0.00021624,2]
[391275716,1760464232579,-427.78233431,0.00021659,2]
[391275718,1760464232588,-467.88692815,0.00022259,2]
[391275720,1760464232597,-232.0,0.00022301,7]
[391275722,1760464232607,-200.0,0.0002251,2]
[391275724,1760464232616,-6376.58,0.00022565,2]
[391275725,1760464232626,-241.76,0.0002271,2]
[391275727,1760464232635,-200.0,0.0002281,2]
[391275729,1760464232645,-507.99152199,0.00022859,2]
[391275731,1760464232654,-200.0,0.0002291,2]
[391275733,1760464232664,-200.0,0.000231,2]
[391275735,1760464232674,-443.72,0.00023278,3]
[391275737,1760464232683,-369.77,0.00023278,3]
[391275739,1760464232692,-184.88,0.00023278,3]
[391275741,1760464232702,-554.68,0.00023278,3]
[391275743,1760464232712,-332.04,0.00023278,3]
[391275745,1760464232721,-1094.59,0.00023278,10]
[391275747,1760464232730,-2087.31,0.00023278,10]
[391275749,1760464232740,-1739.43,0.00023278,10]
[391275750,1760464232748,-498.983,0.00023285,2]
[391275752,1760464232758,-153.03630544,0.00023287,2]
[391275753,1760464232769,-95000.0,0.00023288,30]
[391275754,1760464232780,-402.43064913,0.00023288,30]
[391275755,1760464232790,-587.0,0.00023305,2]
[391275756,1760464232800,-548.09611583,0.00023459,2]
[391275757,1760464232810,-7970.72,0.00023505,2]
[391275758,1760464232819,-200.0,0.0002351,7]
[391275759,1760464232829,-2351.0,0.00023531,2]
[391275760,1760464232838,-500.0,0.00023714,2]
[391275761,1760464232848,-43927.00158302,0.0002399,2]
[391275762,1760464232915,-2334.88837828,0.0002399,2]
[391275763,1760464232926,-644.12745233,0.0002399,2]
[391275764,1760464232941,-5136.42971169,0.0002399,2]
[391275765,1760464232952,-47957.55287468,0.0002399,2]
[391275766,1760464232962,-402.43064913,0.00024,30]
[391275767,1760464232971,-588.20070967,0.00024059,2]
[391275768,1760464232981,-402.43064913,0.00024371,2]
[391275769,1760464232990,-3409.01448694,0.000244,2]
[391275770,1760464232999,-1243.13529549,0.000244,2]
[391275771,1760464233009,-237.29042741,0.000244,2]
[391275772,1760464233018,-211.02650042,0.000244,2]
[391275773,1760464233027,-175.38030047,0.000244,2]
[391275774,1760464233037,-194.02089483,0.000244,2]
[391275775,1760464233046,-9564.86,0.00024445,2]
[391275776,1760464233056,-600.0,0.00024487,20]
[391275777,1760464233066,-200.0,0.0002451,7]
[391275778,1760464233076,-3409.01448694,0.000246,2]
[391275779,1760464233089,-1243.13529549,0.000246,2]
[391275780,1760464233100,-237.29042741,0.000246,2]
[391275781,1760464233110,-211.02650042,0.000246,2]
[391275782,1760464233120,-175.38030047,0.000246,2]
[391275783,1760464233129,-194.02089483,0.000246,2]
[391275784,1760464233139,-739.54,0.00024648,3]
[391275785,1760464233148,-369.76,0.00024648,3]
[391275786,1760464233158,-628.30530352,0.00024659,2]
[391275787,1760464233168,-4130.30467118,0.000248,2]
[391275788,1760464233177,-3946.65481329,0.000248,2]
[391275789,1760464233186,-1315.55160443,0.0002489,2]
[391275790,1760464233195,-500.0,0.000249,5]
[391275791,1760464233206,-32487.17721808,0.000249,7]
[391275792,1760464233218,-875.46669485,0.000249,7]
[391275804,1760464237950,-489.3323847,0.00023891,2]
[391275806,1760464237960,-1857.30570607,0.000249,7]
[391275812,1760464238006,-483.75,0.000249,7]
[391275818,1760464238060,-3256.000381,0.000249,7]
[391275820,1760464238069,-3409.01448694,0.000249,2]
[391275822,1760464238079,-1243.13529549,0.000249,2]
[391275824,1760464238089,-211.02650042,0.000249,2]
[391275826,1760464238098,-175.38030047,0.000249,2]
[391275828,1760464238108,-194.02089483,0.000249,2]
[391275831,1760464238118,-261767.911419,0.000249,2]
[391275833,1760464238127,-402.43064913,0.000249,7]
[391275835,1760464238137,-160.0,0.00024958,2]
[391275837,1760464238147,-65441.9778548,0.0002498,2]
[391275839,1760464238157,-3946.65481329,0.0002498,2]
[391275841,1760464238166,-177.165,0.00025,8]
[391275843,1760464238176,-447.44655504,0.00025068,7]
[391275845,1760464238185,-200.0,0.000251,7]
[391275847,1760464238194,-3409.01448694,0.000251,2]
[391275849,1760464238203,-1243.13529549,0.000251,2]
[391275851,1760464238213,-211.02650042,0.000251,2]
[391275853,1760464238223,-194.02089483,0.000251,2]
[391275866,1760464238338,-500.0,0.00025174,5]
[391275868,1760464238348,-160.0,0.00025185,3]
[391275870,1760464238357,-668.40989736,0.00025259,2]
[391275872,1760464238367,-11159.01,0.00025385,2]
[391275874,1760464238376,-823.0,0.00025386,2]
[391275876,1760464238386,-3409.01448694,0.000254,2]
[391275878,1760464238395,-1243.13529549,0.000254,2]
[391275880,1760464238405,-211.02650042,0.000254,2]
[391275882,1760464238414,-194.02089483,0.000254,2]
[391275884,1760464238423,-260.0,0.00025506,2]
[391275886,1760464238433,-200.0,0.0002551,7]
[391275889,1760464238442,-3409.01448694,0.000256,2]
[391275890,1760464238451,-1243.13529549,0.000256,2]
[391275893,1760464238461,-500.0,0.00025715,7]
[391275895,1760464238471,-3292.0,0.00025756,2]
[391275897,1760464238480,-708.5144912,0.00025859,2]
[391275899,1760464238490,-3409.01448694,0.000259,2]
[391275901,1760464238499,-1243.13529549,0.000259,2]
[391275903,1760464238509,-1315.55160443,0.00026017,2]
[391275905,1760464238519,-7793.07,0.00026027,2]
[391275907,1760464238528,-360.0,0.00026054,2]
[391275909,1760464238537,-200.0,0.000261,7]
[391275911,1760464238546,-3409.01448694,0.000261,2]
[391275913,1760464238555,-1243.13529549,0.000261,2]
[391275915,1760464238564,-177.0,0.00026137,19]
[391275916,1760464238574,-151.0,0.00026138,2]
[391275918,1760464238583,-151.0,0.00026138,2]
[391275921,1760464238597,-151.0,0.00026138,2]
[391275922,1760464238606,-151.0,0.00026138,2]
[391275925,1760464238616,-151.0,0.00026138,2]
[391275927,1760464238625,-151.0,0.00026138,2]
[391275929,1760464238634,-151.0,0.00026138,2]
[391275930,1760464238643,-151.0,0.00026138,2]
[391275932,1760464238653,-151.0,0.00026193,2]
[391275934,1760464238663,-198.0,0.00026193,2]
[391275936,1760464238671,-198.0,0.00026193,2]
[391275939,1760464238683,-151.0,0.00026193,2]
[391275941,1760464238693,-198.0,0.00026193,2]
[391275943,1760464238703,-198.0,0.00026193,2]
[391275945,1760464238716,-198.0,0.00026248,2]
[391275947,1760464238726,-151.0,0.00026248,2]
[391275949,1760464238736,-1324.73408789,0.000263,2]
[391275951,1760464238745,-151.0,0.00026302,2]
[391275953,1760464238754,-12753.15,0.00026325,2]
[391275955,1760464238763,-151.0,0.00026357,2]
[391275957,1760464238775,-3409.01448694,0.000264,2]
[391275959,1760464238785,-1243.13529549,0.000264,2]
[391275961,1760464238795,-198.0,0.00026412,2]
[391275963,1760464238804,-748.61908504,0.00026459,2]
[391275965,1760464238814,-489.3323847,0.00026513,2]
[391275967,1760464238823,-340.65753982,0.00026573,2]
[391275969,1760464238833,-160.0,0.00026578,4]
[391275971,1760464238842,-1315.55160443,0.0002659,2]
[391275973,1760464238853,-38959.7,0.000266,7]
[391275975,1760464238863,-460.0,0.00026602,2]
[391275977,1760464238873,-1437.0970736,0.00026632,2]
[391275979,1760464238883,-3409.01448694,0.000267,2]
[391275981,1760464238892,-1243.13529549,0.000267,2]
[391275983,1760464238902,-4130.30467118,0.0002685,2]
[391275985,1760464238912,-720.0,0.00026936,30]
[391275987,1760464238922,-1324.73408789,0.0002695,2]
[391275989,1760464238931,-300.0,0.00027,2]
[391275990,1760464238941,-300.0,0.00027,2]
[391275992,1760464238952,-300.0,0.00027,2]
[391275995,1760464238964,-300.0,0.00027,2]
[391275997,1760464238974,-2557.0,0.00027005,2]
[391275999,1760464238984,-788.72367888,0.00027059,2]
[391276001,1760464238994,-200.0,0.000271,7]
[391276003,1760464239006,-1437.0970736,0.00027111,2]
[391276005,1760464239016,-800.0,0.00027143,2]
[391276007,1760464239025,-560.0,0.0002715,2]
[391276009,1760464239036,-2557.0,0.00027183,7]
[391276011,1760464239046,-177.56474276,0.0002719,2]
[391276012,1760464239056,-1437.0970736,0.00027206,2]
[391276014,1760464239066,-1315.55160443,0.00027253,2]
[391276016,1760464239076,-14347.3,0.00027266,2]
[391276018,1760464239086,-10524.4128354,0.00027275,2]
[391276021,1760464239096,-370000.0,0.00027285,2]
[391276023,1760464239106,-800.0,0.00027328,2]
[391276024,1760464239116,-294.162258,0.00027354,2]
[391276025,1760464239125,-303.516433,0.00027354,2]
[391276026,1760464239135,-1315.55160443,0.00027387,2]
[391276027,1760464239145,-500.0,0.00027397,2]
[391276028,1760464239156,-500.0,0.00027397,2]
[391276030,1760464239165,-500.0,0.00027397,2]
[391276032,1760464239175,-500.0,0.00027397,2]
[391276034,1760464239185,-500.0,0.00027397,2]
[391276036,1760464239195,-500.0,0.00027397,2]
[391276038,1760464239204,-500.0,0.00027397,2]
[391276040,1760464239215,-500.0,0.00027397,2]
[391276042,1760464239225,-500.0,0.00027397,2]
[391276044,1760464239234,-500.01,0.00027397,2]
[391276046,1760464239243,-1000.0,0.00027397,2]
[391276047,1760464239253,-1000.0,0.00027397,2]
[391276048,1760464239263,-908.85745182,0.00027397,2]
[391276049,1760464239272,-1000.0,0.00027397,2]
[391276050,1760464239282,-628.407889,0.00027397,2]
[391276051,1760464239292,-769.37,0.00027397,2]
[391276052,1760464239301,-769.37,0.00027397,2]
[391276053,1760464239310,-769.37,0.00027397,2]
[391276054,1760464239320,-769.37,0.00027397,2]
[391276055,1760464239329,-769.37,0.00027397,2]
[391276056,1760464239339,-769.37,0.00027397,2]
[391276057,1760464239348,-769.37,0.00027397,2]
[391276058,1760464239357,-769.37,0.00027397,2]
[391276059,1760464239366,-769.37,0.00027397,2]
[391276060,1760464239375,-769.37,0.00027397,2]
[391276061,1760464239384,-769.37,0.00027397,2]
[391276062,1760464239393,-769.37,0.00027397,2]
[391276063,1760464239402,-769.37,0.00027397,2]
[391276064,1760464239412,-769.37,0.00027397,2]
[391276065,1760464239424,-769.37,0.00027397,2]
[391276066,1760464239433,-769.37,0.00027397,2]
[391276067,1760464239442,-769.37,0.00027397,2]
[391276068,1760464239451,-769.37,0.00027397,2]
[391276069,1760464239462,-769.37,0.00027397,2]
[391276070,1760464239470,-769.37,0.00027397,2]
[391276071,1760464239479,-769.37,0.00027397,2]
[391276072,1760464239488,-769.37,0.00027397,2]
[391276073,1760464239496,-769.37,0.00027397,2]
[391276074,1760464239505,-769.48,0.00027397,2]
[391276075,1760464239514,-7793.07,0.00027397,4]
[391276076,1760464239523,-157.75157248,0.000274,4]
[391276077,1760464239532,-157.75,0.000274,4]
[391276078,1760464239540,-184.04350122,0.000274,4]
[391276079,1760464239549,-184.04350122,0.000274,4]
[391276080,1760464239559,-170.65272834,0.000274,4]
[391276081,1760464239567,-170.65272834,0.000274,4]
[391276082,1760464239576,-170.65,0.000274,4]
[391276083,1760464239584,-170.65272834,0.000274,4]
[391276084,1760464239593,-170.65272834,0.000274,4]
[391276085,1760464239602,-170.65272834,0.000274,4]
[391276086,1760464239611,-170.65272834,0.000274,4]
[391276087,1760464239620,-170.65272834,0.000274,4]
[391276088,1760464239628,-191.31749074,0.000274,4]
[391276090,1760464239637,-191.31749074,0.000274,4]
[391276091,1760464239646,-191.31,0.000274,4]
[391276092,1760464239655,-167.4028044,0.000274,4]
[391276093,1760464239663,-167.4028044,0.000274,4]
[391276094,1760464239672,-167.4028044,0.000274,4]
[391276095,1760464239682,-167.4028044,0.000274,4]
[391276096,1760464239690,-167.4028044,0.000274,4]
[391276097,1760464239700,-1437.0970736,0.00027403,2]
[391276098,1760464239710,-184.04350122,0.00027455,4]
[391276100,1760464239719,-167.4028044,0.00027455,4]
[391276101,1760464239729,-1315.55160443,0.00027592,2]
[391276102,1760464239739,-1324.73408789,0.000276,2]
[391276103,1760464239748,-151.0,0.00027602,30]
[391276104,1760464239757,-151.0,0.00027602,30]
[391276105,1760464239768,-1803.824206,0.00027602,30]
[391276106,1760464239778,-1803.824206,0.00027602,30]
[391276107,1760464239786,-1468.276667,0.00027602,30]
[391276108,1760464239795,-1803.824206,0.00027602,30]
[391276109,1760464239804,-165.845106,0.00027602,30]
[391276110,1760464239814,-1468.276667,0.00027602,30]
[391276111,1760464239823,-1803.824206,0.00027602,30]
[391276112,1760464239833,-165.845106,0.00027602,30]
[391276113,1760464239841,-1468.276667,0.00027602,30]
[391276114,1760464239852,-165.845106,0.00027602,30]
[391276115,1760464239863,-1468.276667,0.00027602,30]
[391276116,1760464239872,-165.845106,0.00027602,30]
[391276117,1760464239882,-151.0,0.00027602,30]
[391276118,1760464239892,-151.0,0.00027602,30]
[391276119,1760464239902,-428.87907,0.00027602,30]
[391276120,1760464239912,-151.0,0.00027602,30]
[391276121,1760464239922,-428.87907,0.00027602,30]
[391276122,1760464239932,-428.87907,0.00027602,30]
[391276124,1760464239942,-428.87907,0.00027602,30]
[391276126,1760464239951,-151.0,0.00027602,30]
[391276128,1760464239964,-710.075834,0.00027602,30]
[391276130,1760464239974,-710.075834,0.00027602,30]
[391276132,1760464239984,-710.075834,0.00027602,30]
[391276134,1760464239993,-710.075834,0.00027602,30]
[391276136,1760464240006,-151.0,0.00027602,30]
[391276137,1760464240017,-151.0,0.00027602,30]
[391276138,1760464240026,-151.0,0.00027602,30]
[391276139,1760464240035,-151.0,0.00027602,30]
[391276140,1760464240045,-151.0,0.00027602,30]
[391276141,1760464240053,-151.0,0.00027602,30]
[391276142,1760464240064,-151.0,0.00027602,30]
[391276143,1760464240074,-151.0,0.00027602,30]
[391276144,1760464240083,-151.0,0.00027602,30]
[391276145,1760464240092,-151.0,0.00027602,30]
[391276146,1760464240101,-151.0,0.00027602,30]
[391276147,1760464240111,-796.36667178,0.00027602,2]
[391276148,1760464240120,-1000.0,0.00027603,2]
[391276149,1760464240130,-1000.0,0.00027603,2]
[391276150,1760464240139,-18603.8837,0.00027603,2]
[391276152,1760464240148,-1000.0,0.00027603,2]
[391276154,1760464240157,-151.0,0.00027603,2]
[391276156,1760464240166,-151.0,0.00027603,2]
[391276158,1760464240175,-151.0,0.00027603,2]
[391276160,1760464240184,-151.0,0.00027603,2]
[391276161,1760464240192,-1000.0,0.00027603,2]
[391276162,1760464240202,-500.0,0.00027603,2]
[391276163,1760464240214,-151.0,0.00027603,2]
[391276164,1760464240223,-151.0,0.00027603,2]
[391276165,1760464240232,-500.0,0.00027603,2]
[391276166,1760464240242,-1000.0,0.00027603,2]
[391276167,1760464240252,-151.0,0.00027603,2]
[391276168,1760464240261,-500.0,0.00027603,2]
[391276169,1760464240271,-151.0,0.00027603,2]
[391276171,1760464240280,-1000.0,0.00027603,2]
[391276173,1760464240289,-500.0,0.00027603,2]
[391276176,1760464240298,-151.0,0.00027603,2]
[391276177,1760464240307,-1000.0,0.00027603,2]
[391276178,1760464240316,-212.33504386,0.00027603,2]
[391276179,1760464240325,-2030.296672,0.00027603,2]
[391276180,1760464240333,-500.0,0.00027603,2]
[391276181,1760464240342,-151.0,0.00027603,2]
[391276182,1760464240352,-250.0,0.00027603,2]
[391276183,1760464240361,-1000.0,0.00027603,2]
[391276185,1760464240369,-157.77191756,0.00027603,2]
[391276187,1760464240378,-250.0,0.00027603,2]
[391276189,1760464240386,-500.0,0.00027603,2]
[391276190,1760464240392,-1000.0,0.00027603,2]
[391276192,1760464240399,-250.0,0.00027603,2]
[391276194,1760464240407,-1000.0,0.00027603,2]
[391276196,1760464240415,-500.0,0.00027603,2]
[391276198,1760464240423,-1000.0,0.00027603,2]
[391276200,1760464240430,-250.0,0.00027603,2]
[391276202,1760464240438,-1000.0,0.00027603,2]
[391276204,1760464240445,-1000.0,0.00027603,2]
[391276205,1760464240451,-500.0,0.00027603,2]
[391276211,1760464240532,-1000.0,0.00027603,2]
[391276212,1760464240540,-250.0,0.00027603,2]
[391276213,1760464240548,-1000.0,0.00027603,2]
[391276214,1760464240555,-500.0,0.00027603,2]
[391276216,1760464240563,-1000.0,0.00027603,2]
[391276219,1760464240572,-250.0,0.00027603,2]
[391276221,1760464240580,-1000.0,0.00027603,2]
[391276222,1760464240588,-500.0,0.00027603,2]
[391276223,1760464240596,-1000.0,0.00027603,2]
[391276225,1760464240604,-151.0,0.00027603,2]
[391276227,1760464240611,-250.0,0.00027603,2]
[391276228,1760464240618,-1000.0,0.00027603,2]
[391276229,1760464240626,-505.53359552,0.00027603,2]
[391276230,1760464240634,-1000.0,0.00027603,2]
[391276231,1760464240642,-151.0,0.00027603,2]
[391276232,1760464240650,-250.0,0.00027603,2]
[391276233,1760464240659,-1000.0,0.00027603,2]
[391276234,1760464240668,-1000.0,0.00027603,2]
[391276235,1760464240677,-151.0,0.00027603,2]
[391276236,1760464240687,-250.0,0.00027603,2]
[391276237,1760464240697,-1000.0,0.00027603,2]
[391276238,1760464240706,-250.0,0.00027603,2]
[391276239,1760464240718,-1000.0,0.00027603,2]
[391276240,1760464240727,-151.0,0.00027603,2]
[391276241,1760464240737,-250.0,0.00027603,2]
[391276243,1760464240746,-250.0,0.00027603,2]
[391276245,1760464240755,-1000.0,0.00027603,2]
[391276247,1760464240764,-151.0,0.00027603,2]
[391276249,1760464240773,-250.0,0.00027603,2]
[391276250,1760464240785,-1000.0,0.00027603,2]
[391276252,1760464240794,-250.0,0.00027603,2]
[391276254,1760464240804,-1000.0,0.00027603,2]
[391276256,1760464240813,-151.0,0.00027603,2]
[391276258,1760464240823,-250.0,0.00027603,2]
[391276260,1760464240833,-1000.0,0.00027603,2]
[391276262,1760464240842,-250.0,0.00027603,2]
[391276264,1760464240853,-1000.0,0.00027603,2]
[391276266,1760464240865,-151.0,0.00027603,2]
[391276268,1760464240875,-250.0,0.00027603,2]
[391276270,1760464240884,-1000.0,0.00027603,2]
[391276272,1760464240894,-1000.0,0.00027603,2]
[391276273,1760464240904,-151.0,0.00027603,2]
[391276276,1760464240913,-250.0,0.00027603,2]
[391276278,1760464240924,-250.0,0.00027603,2]
[391276280,1760464240934,-1000.0,0.00027603,2]
[391276282,1760464240944,-151.0,0.00027603,2]
[391276284,1760464240954,-1000.0,0.00027603,2]
[391276286,1760464240967,-151.0,0.00027603,2]
[391276288,1760464240977,-250.0,0.00027603,2]
[391276290,1760464240986,-250.0,0.00027603,2]
[391276292,1760464240996,-151.0,0.00027603,2]
[391276294,1760464241007,-1000.0,0.00027603,2]
[391276296,1760464241017,-151.0,0.00027603,2]
[391276298,1760464241027,-250.0,0.00027603,2]
[391276299,1760464241036,-250.0,0.00027603,2]
[391276301,1760464241045,-151.0,0.00027603,2]
[391276302,1760464241054,-1000.0,0.00027603,2]
[391276304,1760464241064,-151.0,0.00027603,2]
[391276305,1760464241074,-250.0,0.00027603,2]
[391276307,1760464241083,-250.0,0.00027603,2]
[391276308,1760464241093,-151.0,0.00027603,2]
[391276310,1760464241102,-1000.0,0.00027603,2]
[391276311,1760464241112,-151.0,0.00027603,2]
[391276313,1760464241122,-250.0,0.00027603,2]
[391276315,1760464241133,-151.0,0.00027603,2]
[391276316,1760464241141,-250.0,0.00027603,2]
[391276318,1760464241150,-1000.0,0.00027603,2]
[391276319,1760464241159,-151.0,0.00027603,2]
[391276321,1760464241169,-151.0,0.00027603,2]
[391276322,1760464241178,-250.0,0.00027603,2]
[391276324,1760464241186,-1000.0,0.00027603,2]
[391276325,1760464241196,-151.0,0.00027603,2]
[391276327,1760464241205,-151.0,0.00027603,2]
[391276328,1760464241216,-250.0,0.00027603,2]
[391276330,1760464241225,-1000.0,0.00027603,2]
[391276331,1760464241234,-151.0,0.00027603,2]
[391276333,1760464241243,-151.0,0.00027603,2]
[391276334,1760464241252,-250.0,0.00027603,2]
[391276336,1760464241262,-500.0,0.00027603,2]
[391276337,1760464241271,-1000.0,0.00027603,2]
[391276338,1760464241280,-151.0,0.00027603,2]
[391276340,1760464241289,-151.0,0.00027603,2]
[391276341,1760464241298,-250.0,0.00027603,2]
[391276343,1760464241307,-500.0,0.00027603,2]
[391276344,1760464241316,-151.0,0.00027603,2]
[391276346,1760464241326,-151.0,0.00027603,2]
[391276347,1760464241335,-500.0,0.00027603,2]
[391276349,1760464241344,-279.53150536,0.00027603,2]
[391276350,1760464241353,-2618.96571557,0.00027603,2]
[391276352,1760464241362,-151.0,0.00027603,2]
[391276354,1760464241371,-500.0,0.00027603,2]
[391276355,1760464241380,-151.0,0.00027603,2]
[391276357,1760464241388,-151.0,0.00027603,2]
[391276358,1760464241397,-151.0,0.00027603,2]
[391276360,1760464241406,-500.0,0.00027603,2]
[391276361,1760464241415,-151.0,0.00027603,2]
[391276363,1760464241424,-500.0,0.00027603,2]
[391276365,1760464241434,-151.0,0.00027603,2]
[391276366,1760464241443,-500.0,0.00027603,2]
[391276368,1760464241451,-151.0,0.00027603,2]
[391276369,1760464241461,-500.0,0.00027603,2]
[391276371,1760464241470,-151.0,0.00027603,2]
[391276373,1760464241480,-500.0,0.00027603,2]
[391276374,1760464241489,-151.0,0.00027603,2]
[391276376,1760464241498,-162.380719,0.00027603,2]
[391276377,1760464241507,-500.0,0.00027603,2]
[391276379,1760464241517,-151.0,0.00027603,2]
[391276380,1760464241526,-500.0,0.00027603,2]
[391276382,1760464241536,-151.0,0.00027603,2]
[391276384,1760464241545,-500.0,0.00027603,2]